bitfinex-derivatives/quotes_BTCF0:USTF0_20251230
["timestamp","ask_amount","ask_price","bid_price","bid_amount"]
[1767054835251,0.00012634,87218.0,87209.0,0.15648212]
[1767054835657,0.00012634,87218.0,87205.0,0.00017198]
[1767054836157,0.00012634,87218.0,87208.0,0.15648212]
[1767054836368,0.04799755,87221.0,87208.0,0.15648212]
[1767054836556,0.04799755,87221.0,87210.0,0.15648212]
[1767054836962,0.09756,87232.0,87210.0,0.32444424]
[1767054837162,0.05756,87231.0,87220.0,0.15648212]
[1767054837462,0.0114764,87239.0,87220.0,0.15648212]
[1767054837663,0.09756,87237.0,87228.0,0.15648212]
[1767054837858,0.05756,87236.0,87220.0,0.15648212]
[1767054838058,0.05756,87236.0,87216.0,0.0114792]
[1767054838059,0.00017198,87237.0,87227.0,0.15648212]
[1767054838367,0.05756,87235.0,87220.0,0.15648212]
[1767054838565,0.15648212,87230.0,87219.0,0.00017198]
[1767054838957,0.0114776,87229.0,87219.0,0.00017198]
[1767054839159,0.0114776,87229.0,87219.0,8e-08]
[1767054839355,0.05756,87228.0,87212.0,0.05756]
[1767054839565,0.0114779,87227.0,87212.0,0.05756]
[1767054840071,0.0114781,87225.0,87203.0,0.05756]
[1767054840255,0.0114781,87225.0,87205.0,0.00017198]
[1767054841870,0.109038,87226.0,87205.0,0.00017198]
[1767054842274,0.0114787,87221.0,87205.0,0.00017198]
[1767054843371,0.09756,87226.0,87178.0,0.09756]
[1767054843372,0.0114808,87205.0,87178.0,0.09756]
[1767054843568,0.0114818,87198.0,87188.0,1e-08]
[1767054843963,0.0114822,87195.0,87188.0,1e-08]
[1767054844161,0.011482,87196.0,87188.0,1e-08]
[1767054844568,0.01490307,87199.0,87188.0,1e-08]
[1767054844767,0.00017198,87201.0,87143.0,0.06189538]
[1767054844768,0.0114838,87182.0,87166.0,0.09756]
[1767054844976,0.0114838,87182.0,87167.0,0.05756]
[1767054845183,0.00017198,87183.0,87167.0,0.05756]
[1767054847464,0.06193596,87195.0,87170.0,0.0114852]
[1767054847663,0.05756,87192.0,87167.0,0.05756]
[1767054847876,0.05756,87192.0,87168.0,0.0114855]
[1767054848469,0.00017198,87189.0,87171.0,0.00017198]
[1767054850474,0.00017198,87189.0,87172.0,0.011485]
[1767054850776,0.06193596,87202.0,87178.0,0.0114843]
[1767054850980,0.0576,87203.0,87179.0,0.31165512]
[1767054851177,0.0114811,87202.0,87180.0,0.0976]
[1767054851380,0.0576,87203.0,87180.0,0.0976]
[1767054851879,0.00017198,87200.0,87180.0,0.0976]
[1767054852777,0.00017198,87200.0,87181.0,0.0114838]
[1767054853180,0.05647,87199.0,87181.0,0.0114838]
[1767054857483,0.05647,87199.0,87180.0,0.0976]
[1767054864587,0.05647,87199.0,87180.0,0.25416504]
[1767054864990,0.05647,87199.0,87180.0,0.0976]
[1767054865188,0.05647,87199.0,87180.0,0.25416504]
[1767054866088,0.05647,87199.0,87189.0,0.15656504]
[1767054866483,0.05647,87199.0,87180.0,0.1090839]
[1767054866684,0.05647,87199.0,87189.0,0.15656504]
[1767054867288,0.06193596,87209.0,87190.0,0.15516]
[1767054867488,0.06193596,87210.0,87199.0,0.15656504]
[1767054867694,0.06193596,87211.0,87200.0,0.15656504]
[1767054868392,0.06193596,87212.0,87200.0,0.15656504]
[1767054868593,0.06188596,87212.0,87200.0,0.15656504]
[1767054869392,0.05756,87213.0,87200.0,0.15656504]
[1767054871191,0.08238736,87212.0,87200.0,0.01667051]
[1767054871387,0.08238736,87211.0,87200.0,0.15656504]
[1767054871693,0.08238736,87211.0,87200.0,0.15651504]
[1767054871894,0.08238736,87212.0,87200.0,0.15651504]
[1767054872201,0.08238736,87211.0,87200.0,0.15651504]
[1767054873196,0.05756,87213.0,87200.0,0.15651504]
[1767054873386,0.10309973,87221.0,87204.0,0.0114808]
[1767054873696,0.05756,87225.0,87211.0,0.15656504]
[1767054875287,0.05756,87225.0,87215.0,0.15656504]
[1767054875483,0.00017198,87227.0,87215.0,0.15656504]
[1767054876484,0.00012198,87227.0,87215.0,0.15656504]
[1767054877486,0.00012198,87227.0,87215.0,0.15651504]
[1767054881799,0.0584,87231.0,87215.0,0.15651504]
[1767054882102,0.0976,87234.0,87220.0,0.15656504]
[1767054882300,0.0976,87234.0,87221.0,0.05756]
[1767054883404,0.0114771,87233.0,87221.0,0.05756]
[1767054883994,0.0976,87234.0,87221.0,0.05756]
[1767054884506,0.109077,87234.0,87221.0,0.05756]
[1767054887104,0.0976,87234.0,87221.0,0.05756]
[1767054888106,0.0976,87234.0,87224.0,0.15656504]
[1767054888306,0.00017198,87236.0,87224.0,0.15656504]
[1767054888912,0.00017198,87236.0,87221.0,0.05756]
[1767054889098,0.00017198,87236.0,87226.0,0.15656504]
[1767054889406,0.00017198,87236.0,87226.0,0.05756]
[1767054889592,0.00017198,87236.0,87221.0,0.09756]
[1767054889798,0.00017198,87236.0,87224.0,0.05756]
[1767054890309,0.0114772,87232.0,87224.0,0.05756]
[1767054894908,0.01164868,87236.0,87224.0,0.05756]
[1767054895106,0.0690362,87240.0,87224.0,0.05756]
[1767054895306,0.0114757,87244.0,87224.0,0.05756]
[1767054895910,0.07157497,87250.0,87224.0,0.05756]
[1767054896113,0.00011367,87246.0,87224.0,0.05756]
[1767054896313,0.0114757,87244.0,87224.0,0.05756]
[1767054897706,0.00011367,87246.0,87224.0,0.05756]
[1767054897904,0.05752,87250.0,87224.0,0.05756]
[1767054898906,0.07312,87249.0,87224.0,0.05756]
[1767054899312,0.0114753,87247.0,87224.0,0.05756]
[1767054900409,0.0114753,87247.0,87219.0,0.00017198]
[1767054900410,0.13477303,87249.0,87219.0,0.00017198]
[1767054900616,0.0114781,87226.0,87219.0,0.00017198]
[1767054900816,0.0114781,87226.0,87219.0,8e-08]
[1767054901420,0.011477,87234.0,87219.0,8e-08]
[1767054901821,0.05769198,87235.0,87219.0,8e-08]
[1767054903133,0.011477,87234.0,87219.0,8e-08]
[1767054903528,0.0114774,87231.0,87219.0,8e-08]
[1767054904325,0.05769198,87235.0,87219.0,0.05752]
[1767054904326,0.0114772,87232.0,87219.0,0.05752]
[1767054905535,0.0114776,87229.0,87217.0,0.00017198]
[1767054908437,0.011478,87226.0,87217.0,0.00017198]
[1767054911229,0.06165303,87224.0,87215.0,0.0093924]
[1767054921240,0.05542,87228.0,87215.0,0.0093924]
[1767054933553,0.0668977,87228.0,87215.0,0.0093924]
[1767054934142,0.11917303,87227.0,87211.0,0.00017198]
[1767054934450,0.06165303,87222.0,87207.0,0.05752]
[1767054934652,0.06165303,87221.0,87207.0,0.05752]
[1767054934851,0.11917303,87220.0,87186.0,0.32962584]
[1767054935160,0.11917303,87220.0,87197.0,0.0114817]
[1767054935452,0.00017198,87217.0,87200.0,0.00017198]
[1767054937760,0.0114793,87216.0,87200.0,0.00017198]
[1767054938345,0.00017198,87217.0,87200.0,0.00017198]
[1767054941556,0.05752,87216.0,87200.0,0.00017198]
[1767054942851,0.00017198,87217.0,87201.0,0.0114812]
[1767054943255,0.00017198,87217.0,87204.0,0.0114808]
[1767054944654,0.05542,87228.0,87200.0,0.00017198]
[1767054944859,0.15508,87227.0,87200.0,0.00017198]
[1767054945460,0.15508,87227.0,87201.0,0.01784686]
[1767054945652,0.15508,87227.0,87200.0,0.00017198]
[1767054945852,0.00017198,87222.0,87201.0,0.01784685]
[1767054946052,0.00017198,87222.0,87200.0,0.00017198]
[1767054946252,0.00017198,87222.0,87201.0,0.01784685]
[1767054946454,0.00017198,87222.0,87200.0,0.00017198]
[1767054946655,0.00017198,87222.0,87210.0,0.01148]
[1767054949262,0.05542,87228.0,87208.0,0.09756]
[1767054949569,0.05542,87228.0,87217.0,0.0114791]
[1767054949862,0.06165303,87243.0,87217.0,0.0114791]
[1767054949863,0.09756,87247.0,87224.0,0.0114782]
[1767054950057,0.05752,87246.0,87224.0,0.0114782]
[1767054950457,0.00017198,87244.0,87226.0,0.00017198]
[1767054952262,0.00017198,87244.0,87227.0,0.05752]
[1767054952758,0.05071,87243.0,87227.0,0.05752]
[1767054953065,0.05071,87243.0,87226.0,0.00017198]
[1767054953269,0.0114764,87238.0,87226.0,8e-08]
[1767054953466,0.05071,87243.0,87226.0,8e-08]
[1767054953864,0.0114768,87235.0,87226.0,8e-08]
[1767054956174,0.05752,87234.0,87226.0,8e-08]
[1767054961371,0.06165303,87231.0,87220.0,0.15646443]
[1767054962181,0.06165303,87233.0,87220.0,0.15646443]
[1767054962376,0.06165303,87234.0,87220.0,0.15646443]
[1767054963076,0.06165303,87234.0,87224.0,0.15646443]
[1767054963781,0.06165303,87234.0,87220.0,0.15646443]
[1767054964282,0.06165303,87238.0,87224.0,0.15646443]
[1767054964469,0.06165303,87238.0,87230.0,0.15646443]
[1767054964671,0.05752,87240.0,87230.0,0.15646443]
[1767054965273,0.0114762,87239.0,87222.0,0.05752]
[1767054967687,0.05752,87240.0,87222.0,0.05752]
[1767054968183,0.06165303,87241.0,87230.0,0.15646443]
[1767054969888,0.0114761,87240.0,87230.0,0.15646443]
[1767054972388,0.05752,87242.0,87230.0,0.15646443]
[1767054972594,0.011476,87241.0,87230.0,0.15646443]
[1767054974701,0.07312903,87241.0,87230.0,0.15646443]
[1767054975194,0.011476,87241.0,87230.0,0.15646443]
[1767054976191,0.07312903,87241.0,87230.0,0.15646443]
[1767054976396,0.06165303,87241.0,87231.0,0.05752]
[1767054976697,0.00229233,87248.0,87231.0,0.05752]
[1767054976994,0.00229233,87248.0,87238.0,0.15646443]
[1767054977186,0.0114739,87257.0,87238.0,0.21398443]
[1767054977386,0.0114739,87257.0,87239.0,0.09756]
[1767054977599,0.01164588,87257.0,87240.0,0.15646443]
[1767054977896,0.01164588,87257.0,87239.0,0.09773198]
[1767054977897,0.00017198,87257.0,87247.0,0.15646443]
[1767054978298,0.0114753,87247.0,87239.0,0.00017198]
[1767054978499,0.0114765,87237.0,87219.0,0.09756]
[1767054978699,0.068996,87241.0,87223.0,0.05752]
[1767054979098,0.05752,87241.0,87223.0,0.05752]
[1767054979300,0.05752,87241.0,87230.0,0.15646443]
[1767054980195,0.05752,87243.0,87230.0,0.15646443]
[1767054980999,0.0689958,87243.0,87230.0,0.15646443]
[1767054981501,0.0114762,87240.0,87227.0,0.00017198]
[1767054981703,0.16794063,87240.0,87228.0,0.05752]
[1767054981892,0.0114762,87240.0,87227.0,0.05752]
[1767054982300,0.0114773,87231.0,87208.0,0.03092141]
[1767054982598,0.0114777,87229.0,87210.0,0.15646443]
[1767054982800,0.0114786,87222.0,87211.0,0.05752]
[1767054982999,0.0114786,87222.0,87211.0,0.05769198]
[1767054983904,0.011479,87219.0,87207.0,0.15508]
[1767054985693,0.0114784,87223.0,87207.0,0.15508]
[1767054986397,0.0114789,87219.0,87207.0,0.15508]
[1767054986797,0.0114789,87219.0,87207.0,0.05752]
[1767054987809,0.0114789,87219.0,87204.0,0.00017198]
[1767054987810,0.0114797,87213.0,87205.0,0.05752]
[1767054988804,0.0114792,87217.0,87205.0,0.05752]
[1767054989396,0.0689986,87221.0,87205.0,0.05752]
[1767054996709,0.0114792,87217.0,87205.0,0.05752]
[1767054997013,0.0114794,87216.0,87205.0,0.05752]
[1767054998606,0.0114794,87216.0,87204.0,8e-08]
[1767055003116,0.15646443,87220.0,87204.0,8e-08]
[1767055004219,0.0114794,87216.0,87204.0,8e-08]
[1767055011221,0.0689094,87216.0,87204.0,8e-08]
[1767055013222,0.05743,87216.0,87204.0,8e-08]
[1767055015324,0.11917952,87216.0,87204.0,8e-08]
[1767055019035,0.0114794,87215.0,87204.0,8e-08]
[1767055021231,0.11917952,87216.0,87204.0,8e-08]
[1767055021432,0.05752,87215.0,87204.0,8e-08]
[1767055021632,0.05743,87216.0,87204.0,8e-08]
[1767055021824,0.06174952,87230.0,87204.0,0.01148088]
[1767055022026,0.05752,87227.0,87204.0,0.01148088]
[1767055022544,0.09756,87235.0,87204.0,8e-08]
[1767055022738,0.09756,87235.0,87205.0,0.04240211]
[1767055022739,0.05752,87231.0,87205.0,0.04240211]
[1767055024138,0.05752,87231.0,87205.0,0.0114807]
[1767055024531,0.06449,87227.0,87205.0,0.0114807]
[1767055024735,0.06449,87227.0,87208.0,0.0114803]
[1767055024936,0.06449,87227.0,87210.0,0.01148]
[1767055025143,0.06449,87227.0,87211.0,0.09756]
[1767055026239,0.06449,87227.0,87204.0,0.0424575]
[1767055026240,0.06449,87227.0,87204.0,8e-08]
[1767055026540,0.06449,87227.0,87207.0,0.05752]
[1767055026742,0.011478,87226.0,87207.0,0.05752]
[1767055032960,0.0114784,87223.0,87207.0,0.05752]
[1767055033156,0.0114788,87220.0,87207.0,0.05752]
[1767055035250,0.0114783,87224.0,87207.0,0.05752]
[1767055036657,0.0114784,87223.0,87207.0,0.05752]
[1767055037858,0.05752,87222.0,87204.0,8e-08]
[1767055038054,0.0114787,87221.0,87204.0,8e-08]
[1767055040061,0.0114791,87218.0,87204.0,8e-08]
[1767055043161,0.0114799,87212.0,87204.0,8e-08]
[1767055043355,0.0114794,87216.0,87204.0,8e-08]
[1767055044661,0.0114793,87216.0,87204.0,8e-08]
[1767055046455,0.0114788,87220.0,87204.0,8e-08]
[1767055046656,0.05752,87222.0,87204.0,8e-08]
[1767055046857,0.15508,87221.0,87205.0,0.01786824]
[1767055047068,0.0114782,87225.0,87206.0,0.01786824]
[1767055047366,0.15508,87224.0,87207.0,0.01786822]
[1767055047567,0.15508,87224.0,87204.0,8e-08]
[1767055048567,0.0114785,87223.0,87204.0,8e-08]
[1767055050473,0.0114788,87220.0,87204.0,8e-08]
[1767055051373,0.15508,87224.0,87204.0,8e-08]
[1767055052975,0.06449,87227.0,87204.0,8e-08]
[1767055053276,0.06174952,87224.0,87204.0,8e-08]
[1767055054173,0.21682952,87223.0,87204.0,8e-08]
[1767055058267,0.06174952,87222.0,87204.0,8e-08]
[1767055061281,0.15508,87223.0,87204.0,8e-08]
[1767055061770,0.0114781,87226.0,87204.0,8e-08]
[1767055061971,0.15508,87225.0,87204.0,8e-08]
[1767055063282,0.21682952,87225.0,87204.0,8e-08]
[1767055063980,0.15504,87224.0,87204.0,8e-08]
[1767055066082,0.0486,87223.0,87204.0,8e-08]
[1767055067477,0.05748,87222.0,87204.0,8e-08]
[1767055070672,0.0689585,87222.0,87204.0,8e-08]
[1767055071590,0.05748,87222.0,87204.0,8e-08]
[1767055071975,0.11922952,87222.0,87204.0,8e-08]
[1767055075784,0.05748,87222.0,87204.0,8e-08]
[1767055076582,0.05748,87222.0,87210.0,0.15648315]
[1767055077393,0.05748,87222.0,87204.0,8e-08]
[1767055081395,0.06174952,87227.0,87210.0,0.16796315]
[1767055081591,0.09756,87234.0,87218.0,0.15648315]
[1767055081792,0.1090369,87234.0,87214.0,0.05748]
[1767055082804,0.06664,87227.0,87214.0,0.05748]
[1767055082999,0.0114787,87221.0,87206.0,0.05748]
[1767055083198,0.0114789,87219.0,87206.0,0.05748]
[1767055084102,0.15648315,87220.0,87206.0,0.05748]
[1767055085301,0.05752,87220.0,87206.0,0.05748]
[1767055085691,0.21400315,87220.0,87206.0,0.05748]
[1767055086403,0.22548195,87220.0,87206.0,0.05748]
[1767055087603,0.0689988,87220.0,87206.0,0.05748]
[1767055087804,0.22548195,87220.0,87206.0,0.05748]
[1767055088796,0.0114793,87217.0,87206.0,0.05748]
[1767055089001,0.0114796,87214.0,87204.0,0.09756008]
[1767055090100,0.01148,87211.0,87202.0,0.05752]
[1767055092606,0.01148,87211.0,87198.0,0.05763468]
[1767055093107,0.0114804,87208.0,87198.0,0.05763468]
[1767055094201,0.0114798,87212.0,87198.0,0.05763468]
[1767055094506,0.0114804,87208.0,87198.0,0.05763468]
[1767055094807,0.0114799,87212.0,87198.0,0.05763468]
[1767055095208,0.0114804,87208.0,87198.0,0.05763468]
[1767055095410,0.0114799,87212.0,87198.0,0.05763468]
[1767055096800,0.0114805,87207.0,87198.0,0.05763468]
[1767055100413,0.02430066,87207.0,87198.0,0.00011468]
[1767055104609,0.02430066,87207.0,87192.0,0.10220634]
[1767055105417,0.01282016,87207.0,87192.0,0.10220634]
[1767055105716,0.00017198,87208.0,87192.0,0.10220634]
[1767055106517,0.01165228,87208.0,87192.0,0.10220634]
[1767055107908,0.01165228,87208.0,87164.0,0.04129998]
[1767055107909,0.01288996,87208.0,87164.0,0.04129998]
[1767055108111,0.01288996,87208.0,87163.0,0.00988205]
[1767055108112,0.15648315,87190.0,87174.0,0.0114847]
[1767055108306,0.05748,87195.0,87174.0,0.1090447]
[1767055108616,0.06180553,87194.0,87174.0,0.1090447]
[1767055108918,0.06180553,87194.0,87174.0,0.09756]
[1767055109318,0.11928553,87195.0,87174.0,0.09756]
[1767055109619,0.11928553,87195.0,87175.0,0.0114846]
[1767055110520,0.11928553,87195.0,87176.0,0.05748]
[1767055111322,0.05748,87195.0,87176.0,0.05748]
[1767055112113,0.05748,87195.0,87177.0,0.0114844]
[1767055115826,0.05748,87195.0,87176.0,0.05748]
[1767055116323,0.05748,87195.0,87176.0,0.0689645]
[1767055118013,0.05748,87195.0,87170.0,0.15648315]
[1767055118219,0.15648315,87180.0,87163.0,0.0976]
[1767055118518,0.15665513,87180.0,87164.0,0.05752]
[1767055119512,0.0114845,87176.0,87164.0,0.05752]
[1767055119713,0.15665513,87180.0,87164.0,0.05752]
[1767055120120,0.15665513,87180.0,87151.0,0.02863764]
[1767055120319,0.15665513,87180.0,87152.0,0.15512]
[1767055120723,0.0114848,87175.0,87152.0,0.15512]
[1767055123116,0.15648315,87170.0,87151.0,0.02863764]
[1767055123317,0.15665513,87180.0,87153.0,0.05752]
[1767055124024,0.0114851,87172.0,87154.0,0.05752]
[1767055124218,0.15648315,87170.0,87155.0,0.15512]
[1767055124418,0.0114851,87172.0,87156.0,0.15512]
[1767055125924,0.15665513,87180.0,87151.0,0.02863764]
[1767055126124,0.15648315,87170.0,87152.0,0.15512]
[1767055126324,0.16796845,87170.0,87152.0,0.15512]
[1767055127132,0.0114853,87170.0,87153.0,0.15512]
[1767055127432,0.0114853,87170.0,87154.0,0.15512]
[1767055127630,0.0114853,87170.0,87151.0,0.02863764]
[1767055127831,0.0114853,87170.0,87152.0,0.15512]
[1767055128028,0.16796845,87170.0,87152.0,0.15512]
[1767055128633,0.0114858,87167.0,87152.0,0.15512]
[1767055129137,0.0114858,87167.0,87151.0,0.02863764]
[1767055129324,0.15648315,87170.0,87152.0,0.15512]
[1767055130125,0.06724,87169.0,87152.0,0.15512]
[1767055130434,0.0787255,87169.0,87152.0,0.15512]
[1767055131135,0.06724,87169.0,87152.0,0.15512]
[1767055132029,0.00017198,87180.0,87159.0,0.15648315]
[1767055132236,0.00017198,87180.0,87160.0,0.05752]
[1767055132422,0.00017198,87180.0,87161.0,0.0114865]
[1767055132626,0.00017198,87180.0,87170.0,0.15648315]
[1767055132833,0.00017198,87180.0,87171.0,0.05752]
[1767055134825,0.00017198,87180.0,87172.0,0.09764]
[1767055140737,0.0114833,87186.0,87172.0,0.09764]
[1767055141328,0.06180553,87177.0,87173.0,0.09764]
[1767055141729,0.00017209,87184.0,87173.0,0.09764]
[1767055142430,0.0114826,87191.0,87173.0,0.09764]
[1767055142827,0.0114821,87195.0,87173.0,0.09764]
[1767055143332,0.0114825,87192.0,87173.0,0.09764]
[1767055143532,0.0114829,87189.0,87173.0,0.09764]
[1767055143934,0.0114819,87197.0,87173.0,0.09764]
[1767055144836,2.09e-06,87194.0,87173.0,0.09764]
[1767055145040,0.10309973,87213.0,87173.0,0.09764]
[1767055145241,0.0114812,87202.0,87173.0,0.09764]
[1767055145442,0.10309973,87216.0,87173.0,0.09764]
[1767055145637,0.15516,87217.0,87173.0,0.09764]
[1767055145838,0.16793268,87217.0,87173.0,0.09764]
[1767055146044,0.00017209,87204.0,87186.0,0.00017209]
[1767055146246,0.0114815,87200.0,87187.0,0.15512]
[1767055151242,0.04655,87203.0,87187.0,0.15512]
[1767055151648,0.0114819,87197.0,87187.0,0.15512]
[1767055153145,0.0114813,87201.0,87187.0,0.15512]
[1767055153847,0.04655,87203.0,87187.0,0.15512]
[1767055154952,0.0114808,87205.0,87187.0,0.15512]
[1767055155151,0.16793268,87217.0,87187.0,0.15512]
[1767055155352,0.0114806,87206.0,87187.0,0.15512]
[1767055155651,0.16793268,87217.0,87187.0,0.15512]
[1767055156038,0.00017209,87211.0,87187.0,0.15512]
[1767055156839,0.0114819,87196.0,87187.0,0.15512]
[1767055157446,0.0114814,87200.0,87187.0,0.15512]
[1767055158847,0.0114815,87199.0,87187.0,0.15512]
[1767055160556,0.0114815,87199.0,87188.0,0.15512]
[1767055162054,0.011483,87188.0,87164.0,0.03100805]
[1767055162258,0.0114839,87181.0,87162.0,0.03100805]
[1767055162462,0.0976,87196.0,87165.0,0.0976]
[1767055162755,0.0114843,87178.0,87166.0,0.0976]
[1767055163550,0.00017209,87181.0,87166.0,0.0976]
[1767055164056,0.0114833,87186.0,87166.0,0.0976]
[1767055164456,0.06168376,87193.0,87166.0,0.0976]
[1767055164963,0.00017209,87188.0,87166.0,0.0976]
[1767055165156,0.0114833,87186.0,87166.0,0.0976]
[1767055166661,0.06168376,87193.0,87166.0,0.0976]
[1767055166862,0.06168376,87198.0,87166.0,0.14370456]
[1767055167165,0.0114822,87194.0,87166.0,0.15519026]
[1767055167562,0.0114817,87198.0,87172.0,0.011485]
[1767055167866,0.0114817,87198.0,87173.0,0.05752]
[1767055168764,0.15433,87203.0,87173.0,0.05752]
[1767055169265,0.0114816,87199.0,87173.0,0.05752]
[1767055169460,0.15433,87203.0,87173.0,0.05752]
[1767055169667,0.011483,87188.0,87163.0,0.00017209]
[1767055169967,0.0114825,87192.0,87165.0,0.011486]
[1767055170468,0.15433,87203.0,87165.0,0.011486]
[1767055170767,0.0114829,87189.0,87166.0,0.05752]
[1767055170964,0.0114829,87189.0,87166.0,0.15512]
[1767055173159,0.0114844,87177.0,87163.0,0.00017209]
[1767055173363,0.0114853,87171.0,87163.0,0.00017209]
[1767055173659,0.0114853,87171.0,87164.0,0.15516]
[1767055173864,0.0976,87190.0,87165.0,0.05756]
[1767055174655,0.000172,87186.0,87165.0,0.05756]
[1767055175268,0.0114848,87174.0,87165.0,0.05756]
[1767055175970,0.000172,87186.0,87166.0,0.05756]
[1767055176170,0.000172,87186.0,87167.0,0.05756]
[1767055176763,0.0114849,87174.0,87167.0,0.05756]
[1767055177071,0.0114849,87174.0,87166.0,0.05756]
[1767055177862,0.0114849,87174.0,87165.0,0.05756]
[1767055178070,0.0114849,87174.0,87166.0,0.05756]
[1767055178267,0.000172,87186.0,87166.0,0.05756]
[1767055178570,0.0114835,87184.0,87151.0,0.02863764]
[1767055178757,0.0114835,87184.0,87152.0,0.15516]
[1767055179469,0.0114835,87184.0,87159.0,0.00017209]
[1767055179663,0.0114835,87184.0,87160.0,0.05756]
[1767055179664,0.0114851,87172.0,87160.0,0.05756]
[1767055179866,0.0114835,87184.0,87160.0,0.05756]
[1767055180064,0.0114837,87183.0,87160.0,0.05756]
[1767055180267,0.0114837,87183.0,87158.0,9e-08]
[1767055180664,0.0114858,87167.0,87158.0,9e-08]
[1767055180857,0.0976,87179.0,87158.0,9e-08]
[1767055181062,0.0976,87179.0,87160.0,0.00017209]
[1767055181569,0.0114855,87169.0,87160.0,0.00017209]
[1767055182259,0.0114855,87169.0,87160.0,9e-08]
[1767055183570,0.0976,87179.0,87160.0,9e-08]
[1767055184877,0.0114851,87172.0,87160.0,9e-08]
[1767055185764,0.0976,87179.0,87160.0,9e-08]
[1767055187066,0.0114848,87175.0,87160.0,9e-08]
[1767055187277,0.0976,87179.0,87160.0,9e-08]
[1767055189767,0.000172,87186.0,87160.0,9e-08]
[1767055189967,0.0114834,87185.0,87160.0,0.15662655]
[1767055190167,0.0114838,87182.0,87160.0,9e-08]
[1767055190368,0.000172,87186.0,87161.0,0.15516]
[1767055191477,0.07316776,87181.0,87161.0,0.15516]
[1767055191878,0.06168376,87182.0,87161.0,0.15516]
[1767055192372,0.03668376,87182.0,87164.0,0.0114861]
[1767055192574,0.000172,87186.0,87161.0,0.15516]
[1767055192770,0.09764,87192.0,87169.0,0.0114854]
[1767055193274,0.09764,87192.0,87160.0,9e-08]
[1767055193479,0.0114835,87184.0,87161.0,0.17310176]
[1767055193674,0.00017209,87181.0,87162.0,0.01790176]
[1767055193870,0.00017209,87181.0,87163.0,0.01790176]
[1767055194076,0.01165599,87181.0,87164.0,0.01790176]
[1767055194271,0.01165599,87181.0,87165.0,0.01790176]
[1767055194472,0.01165599,87181.0,87161.0,0.1552]
[1767055194775,0.01165599,87181.0,87162.0,0.01790219]
[1767055194969,0.01165599,87181.0,87163.0,0.01790219]
[1767055195163,0.01165599,87181.0,87164.0,0.01790219]
[1767055195368,0.01165599,87181.0,87165.0,0.01790219]
[1767055195577,0.01165599,87181.0,87161.0,0.1552]
[1767055195877,0.01165599,87181.0,87162.0,0.01790193]
[1767055196070,0.01165599,87181.0,87163.0,0.01790193]
[1767055196272,0.01165599,87181.0,87161.0,0.1552]
[1767055197477,0.01165599,87181.0,87160.0,9e-08]
[1767055197680,0.01165599,87181.0,87161.0,0.15516]
[1767055197972,0.01165599,87181.0,87160.0,9e-08]
[1767055198177,0.01165599,87181.0,87161.0,0.15516]
[1767055200180,0.0114844,87178.0,87161.0,0.15516]
[1767055201177,0.00017209,87181.0,87161.0,0.15516]
[1767055201372,0.00017209,87181.0,87170.0,0.15662786]
[1767055202369,0.1091225,87192.0,87170.0,0.15662786]
[1767055202575,0.0976,87191.0,87180.0,0.15662786]
[1767055202775,0.0976,87193.0,87180.0,0.15662786]
[1767055202976,0.0976,87193.0,87171.0,0.0690451]
[1767055202977,0.0976,87193.0,87183.0,0.15662786]
[1767055203181,0.0976,87193.0,87180.0,0.15662786]
[1767055204576,0.00017209,87195.0,87183.0,0.15662786]
[1767055204775,0.0976,87199.0,87183.0,0.15662786]
[1767055204975,0.0976,87199.0,87189.0,0.15662786]
[1767055205480,0.0976,87199.0,87180.0,0.15662786]
[1767055205876,0.1090815,87199.0,87180.0,0.15662786]
[1767055206384,0.0114819,87196.0,87178.0,0.05773209]
[1767055206574,0.0114819,87196.0,87180.0,0.15662786]
[1767055206771,0.0114824,87193.0,87180.0,0.15662786]
[1767055206975,0.0114824,87193.0,87180.0,0.21418786]
[1767055207484,0.0114819,87197.0,87180.0,0.21418786]
[1767055207679,0.0114819,87197.0,87178.0,0.00017209]
[1767055207880,0.0114822,87194.0,87179.0,0.05756]
[1767055208180,0.0114828,87189.0,87178.0,0.00017209]
[1767055208570,0.15662786,87190.0,87178.0,0.00017209]
[1767055209178,0.0114829,87189.0,87178.0,0.00017209]
[1767055209885,0.0114833,87186.0,87178.0,9e-08]
[1767055210186,0.0114836,87183.0,87178.0,9e-08]
[1767055210883,0.0114832,87187.0,87178.0,9e-08]
[1767055211283,0.011483,87188.0,87178.0,9e-08]
[1767055212779,0.011483,87188.0,87170.0,0.15662786]
[1767055213576,0.011483,87188.0,87170.0,0.15679995]
[1767055214286,0.011483,87188.0,87178.0,0.15662786]
[1767055214488,0.15951858,87189.0,87178.0,0.15662786]
[1767055214986,0.17100148,87189.0,87170.0,0.15679995]
[1767055215185,0.06174658,87188.0,87179.0,0.15662786]
[1767055215487,0.057732,87189.0,87179.0,0.15662786]
[1767055215683,0.057732,87189.0,87170.0,0.15679995]
[1767055216389,0.057732,87189.0,87179.0,0.15662786]
[1767055217685,0.057732,87189.0,87170.0,0.21435995]
[1767055218783,0.057732,87189.0,87171.0,0.0976]
[1767055220283,0.05403,87188.0,87171.0,0.0976]
[1767055221992,0.00245,87192.0,87178.0,0.15662786]
[1767055222193,0.0976,87195.0,87178.0,0.21418786]
[1767055222381,0.05756,87196.0,87185.0,0.15662786]
[1767055223787,0.0976,87198.0,87185.0,0.15662786]
[1767055223985,0.0976,87198.0,87188.0,0.15662786]
[1767055231800,0.0114818,87197.0,87185.0,0.05756]
[1767055232097,0.0114822,87194.0,87185.0,0.05756]
[1767055232894,0.0114822,87194.0,87182.0,0.05756]
[1767055233594,0.05752,87193.0,87170.0,0.16828525]
[1767055233900,0.05752,87193.0,87171.0,0.15512]
[1767055235106,0.05752,87193.0,87180.0,0.15662786]
[1767055243010,0.05752,87193.0,87178.0,0.05752]
[1767055243210,0.05752,87193.0,87180.0,0.15662786]
[1767055246307,0.11930153,87193.0,87180.0,0.15662786]
[1767055248313,0.09170153,87193.0,87180.0,0.15662786]
[1767055248905,0.00692153,87193.0,87180.0,0.15662786]
[1767055249105,0.10291,87195.0,87180.0,0.15662786]
[1767055250408,0.10291,87195.0,87185.0,0.15662786]
[1767055250609,0.10291,87195.0,87183.0,0.05752]
[1767055250916,0.1143921,87195.0,87183.0,0.05752]
[1767055251409,0.10291,87195.0,87183.0,0.05752]
[1767055256711,0.10291,87195.0,87185.0,0.15662786]
[1767055256910,0.06475,87195.0,87183.0,0.05752]
[1767055278136,0.00723,87195.0,87183.0,0.05752]